bitfinex-derivatives/quotes_ETHF0:USTF0_20240826
["timestamp","ask_amount","ask_price","bid_price","bid_amount"]
[1724637313298,0.00403534,2743.4,2743.2,0.3593]
[1724637313507,0.00403534,2743.4,2743.3,0.36437]
[1724637313899,0.00403534,2743.4,2743.3,4.00917]
[1724637314597,3.57207,2744.1,2743.8,0.3643]
[1724637314795,3.57207,2744.1,2743.9,0.3781]
[1724637315212,3.2078,2744.1,2744.0,0.36428]
[1724637315400,0.3765,2744.8,2744.1,0.36426]
[1724637315606,0.3765,2744.8,2744.0,0.3552]
[1724637315607,0.00546647,2744.7,2744.0,0.3552]
[1724637315907,0.00546647,2744.7,2744.2,0.36425]
[1724637315908,0.3642,2744.6,2744.2,0.36425]
[1724637316112,9.33584357,2744.7,2744.2,0.36425]
[1724637316803,0.3642,2744.6,2744.1,0.36426]
[1724637317198,0.36421,2744.5,2744.2,4.05403213]
[1724637317601,0.3642,2744.6,2744.2,4.41828213]
[1724637318205,8.97165357,2744.7,2744.2,4.41828213]
[1724637318412,0.36421,2744.6,2744.2,4.41828213]
[1724637318911,0.00546647,2744.7,2744.2,7.26183213]
[1724637319110,0.00546647,2744.7,2744.6,3.5142]
[1724637319416,0.00546647,2744.7,2744.6,7.7772384]
[1724637319596,0.00546647,2744.7,2744.6,8.6340384]
[1724637321106,0.00546647,2744.7,2744.6,4.2527384]
[1724637321300,0.00546647,2744.7,2744.6,0.3636]
[1724637322313,0.36964647,2744.7,2744.6,0.3636]
[1724637323613,0.00546647,2744.7,2744.6,0.3636]
[1724637325108,0.00546647,2744.7,2744.6,0.7278]
[1724637325317,0.00546647,2744.7,2744.6,0.3636]
[1724637328313,0.00546647,2744.7,2744.6,0.7278]
[1724637329005,0.00546647,2744.7,2744.6,0.3636]
[1724637329211,0.00546647,2744.7,2744.6,0.7278]
[1724637329405,0.0016859,2744.8,2744.7,0.36418]
[1724637329619,0.0016859,2744.8,2744.7,4.74178]
[1724637329818,0.0016859,2744.8,2744.7,14.22160692]
[1724637330316,0.0016859,2744.8,2744.7,13.66373571]
[1724637330620,0.0016859,2744.8,2744.7,8.66373571]
[1724637331021,0.0016859,2744.8,2744.7,13.66373571]
[1724637331317,0.0016859,2744.8,2744.7,0.74768]
[1724637332413,0.0016859,2744.8,2744.7,0.3835]
[1724637333022,0.0016859,2744.8,2744.7,0.74768]
[1724637333215,0.0016859,2744.8,2744.7,0.3835]
[1724637333413,0.0016859,2744.8,2744.6,0.7278]
[1724637333815,0.0016859,2744.8,2744.7,0.36418]
[1724637335217,0.0016859,2744.8,2744.6,0.72779]
[1724637335532,0.0016859,2744.8,2744.7,0.36418]
[1724637336617,0.0016859,2744.8,2744.6,0.72779]
[1724637336921,0.0016859,2744.8,2744.7,0.36418]
[1724637337118,0.0016859,2744.8,2744.6,0.72779]
[1724637337621,0.0016859,2744.8,2744.7,0.36418]
[1724637338709,0.0016859,2744.8,2744.4,0.00546647]
[1724637338920,0.36421,2744.5,2744.4,0.00546647]
[1724637339227,0.3642,2744.6,2744.4,0.00546647]
[1724637340112,0.3536859,2744.8,2744.4,0.00546647]
[1724637340413,0.0016859,2744.8,2744.7,0.36418]
[1724637341721,0.0016859,2744.8,2744.6,0.36419]
[1724637343818,0.0016859,2744.8,2744.7,3.57198]
[1724637344028,0.0016859,2744.8,2744.7,11.85822895]
[1724637344316,0.0016859,2744.8,2744.7,4.31448]
[1724637344618,0.0016859,2744.8,2744.7,3.5766]
[1724637344809,0.3658559,2744.8,2744.7,3.5766]
[1724637345007,0.3658559,2744.8,2744.7,7.2198]
[1724637345008,0.0016859,2744.8,2744.7,7.2198]
[1724637345219,0.0016859,2744.8,2744.7,3.94078]
[1724637345517,0.0016859,2744.8,2744.7,7.58398]
[1724637345927,0.0016859,2744.8,2744.7,3.94078]
[1724637346330,0.0016859,2744.8,2744.7,7.58398]
[1724637347325,0.0016859,2744.8,2744.7,11.51009512]
[1724637353229,0.0016859,2744.8,2744.7,11.14591512]
[1724637353730,0.3658559,2744.8,2744.7,3.5766]
[1724637353929,0.3658559,2744.8,2744.5,3.896]
[1724637353930,0.36419,2744.7,2744.5,0.746]
[1724637354236,0.3642,2744.6,2744.5,0.3818]
[1724637354437,0.36419,2744.7,2744.5,0.3818]
[1724637354731,0.3610859,2744.8,2744.4,0.38986647]
[1724637354933,0.36421,2744.5,2744.4,0.00546647]
[1724637357422,4.4793459,2744.8,2744.4,0.00546647]
[1724637357423,0.3642,2744.6,2744.4,0.00546647]
[1724637357631,0.3642,2744.6,2744.4,0.36968647]
[1724637359227,0.3642,2744.6,2744.5,0.55796044]
[1724637360336,3.2094859,2744.8,2744.5,3.70796044]
[1724637360546,0.0016859,2744.8,2744.6,0.74439]
[1724637360833,0.0016859,2744.8,2744.7,0.55795419]
[1724637361043,0.0016859,2744.8,2744.7,0.92213419]
[1724637361436,0.0016859,2744.8,2744.7,3.69358245]
[1724637361635,0.0016859,2744.8,2744.7,4.55783646]
[1724637362741,0.0016859,2744.8,2744.7,5.50056524]
[1724637363050,0.0016859,2744.8,2744.7,4.55783446]
[1724637363333,0.0016859,2744.8,2744.7,5.50056849]
[1724637363941,0.0016859,2744.8,2744.7,4.55783446]
[1724637365539,0.0016859,2744.8,2744.7,22.96670429]
[1724637365741,0.00546647,2745.0,2744.9,0.36416]
[1724637365936,0.00546647,2745.0,2744.9,17.8370827]
[1724637366133,0.00546647,2745.0,2744.9,30.37939585]
[1724637366332,0.00546647,2745.0,2744.9,30.37932666]
[1724637366634,0.00546647,2745.0,2744.9,22.42457017]
[1724637366833,0.00880455,2745.0,2744.9,24.33323832]
[1724637367033,0.00880455,2745.0,2744.9,22.42457017]
[1724637367844,0.00880455,2745.0,2744.9,24.33287381]
[1724637368144,0.00880455,2745.0,2744.9,30.37932666]
[1724637368742,0.00880455,2745.0,2744.9,29.81021479]
[1724637369347,0.00880455,2745.0,2744.9,24.3459234]
[1724637369643,0.00880455,2745.0,2744.9,22.4232811]
[1724637369944,0.00880455,2745.0,2744.9,24.80892572]
[1724637370331,0.00880455,2745.0,2744.9,29.80892572]
[1724637370539,0.00880455,2745.0,2744.9,30.71932572]
[1724637370745,0.00880455,2745.0,2744.9,31.2884276]
[1724637371343,0.00880455,2745.0,2744.9,30.71932572]
[1724637372045,0.00880455,2745.0,2744.9,29.80892572]
[1724637372348,0.00880455,2745.0,2744.9,29.32996232]
[1724637373138,0.00880455,2745.0,2744.9,25.68772325]
[1724637373337,0.00880455,2745.0,2744.9,20.68772611]
[1724637373651,0.00880455,2745.0,2744.9,20.21082525]
[1724637373938,0.00880455,2745.0,2744.9,18.38970572]
[1724637374145,0.00880455,2745.0,2744.9,20.21092082]
[1724637375141,0.00880455,2745.0,2744.9,18.78114046]
[1724637375548,0.00880455,2745.0,2744.9,20.21068873]
[1724637375843,0.91007,2746.0,2744.9,20.21068873]
[1724637375844,3.2078,2746.1,2744.9,27.05930829]
[1724637376137,0.72713,2745.9,2745.6,6.3578]
[1724637376534,0.72713,2745.9,2745.7,0.55784715]
[1724637376849,0.73116948,2745.9,2745.7,0.00444468]
[1724637377736,0.36713948,2745.9,2745.7,0.00444468]
[1724637377936,0.73115948,2745.9,2745.7,0.00444468]
[1724637378343,0.36713948,2745.9,2745.7,0.00444468]
[1724637378848,0.36713948,2745.9,2745.8,0.36404]
[1724637379342,0.00403948,2745.9,2745.8,0.36404]
[1724637379645,0.00403948,2745.9,2745.7,0.74868468]
[1724637379950,0.00403948,2745.9,2745.8,3.86720039]
[1724637381248,0.00403948,2745.9,2745.7,0.00444468]
[1724637385151,0.00403948,2745.9,2745.7,0.36849468]
[1724637386849,0.00403948,2745.9,2745.8,0.36404]
[1724637387052,0.00403948,2745.9,2745.8,0.71764]
[1724637388941,0.00403948,2745.9,2745.7,0.36848468]
[1724637390356,0.00403948,2745.9,2745.8,0.36404]
[1724637390857,0.00403948,2745.9,2745.7,0.36848468]
[1724637391057,0.00403948,2745.9,2745.8,0.36404]
[1724637391656,0.00403948,2745.9,2745.8,3.57184]
[1724637393251,0.00403948,2745.9,2745.8,19.23349042]
[1724637393557,0.00403948,2745.9,2745.8,19.60379042]
[1724637394355,0.00018452,2745.9,2745.8,19.60379042]
[1724637394555,0.00018452,2745.9,2745.8,10.59189042]
[1724637395157,0.00018452,2745.9,2745.8,19.23349042]
[1724637397855,0.00546647,2746.1,2746.0,0.36401]
[1724637398258,0.00546647,2746.1,2746.0,8.11188685]
[1724637398760,0.00546647,2746.1,2746.0,8.49948685]
[1724637399066,0.00980986,2746.1,2746.0,8.49948685]
[1724637403473,0.00980986,2746.1,2746.0,9.0572048]
[1724637404272,0.00980986,2746.1,2746.0,4.85788685]
[1724637404678,0.00980986,2746.1,2746.0,8.49948685]
[1724637405279,0.00980986,2746.1,2746.0,9.05722718]
[1724637405579,0.00980986,2746.1,2746.0,9.05722721]
[1724637406784,0.00980986,2746.1,2746.0,8.49948685]
[1724637407173,0.00980986,2746.1,2746.0,9.05722489]
[1724637409176,0.00980986,2746.1,2746.0,10.0101148]
[1724637409975,0.00980986,2746.1,2746.0,10.01010012]
[1724637410177,0.00980986,2746.1,2746.0,9.05721021]
[1724637410685,0.00980986,2746.1,2746.0,10.01010012]
[1724637411383,0.00980986,2746.1,2746.0,10.81592197]
[1724637411679,0.00980986,2746.1,2746.0,10.25818959]
[1724637411885,0.00980986,2746.1,2746.0,11.6834982]
[1724637412378,0.00980986,2746.1,2746.0,11.2717484]
[1724637412579,0.00980986,2746.1,2746.0,13.50190662]
[1724637413484,0.00980986,2746.1,2746.0,11.74929092]
[1724637413682,0.00980986,2746.1,2746.0,15.51481046]
[1724637413878,0.00980986,2746.1,2746.0,15.4264105]
[1724637414082,0.00980986,2746.1,2746.0,15.42647031]
[1724637414275,0.00980986,2746.1,2746.0,16.70977622]
[1724637414484,0.00980986,2746.1,2746.0,17.0988749]
[1724637414679,0.00980986,2746.1,2746.0,16.2930512]
[1724637414883,0.00980986,2746.1,2746.0,17.09885219]
[1724637415577,0.00980986,2746.1,2746.0,17.90464938]
[1724637416382,0.00980986,2746.1,2746.0,16.47531451]
[1724637416891,0.00980986,2746.1,2746.0,17.90322354]
[1724637417091,0.00980986,2746.1,2746.0,16.15060195]
[1724637417386,0.00980986,2746.1,2746.0,16.53970094]
[1724637417586,0.00980986,2746.1,2746.0,15.34481277]
[1724637418273,0.00980986,2746.1,2746.0,15.34481255]
[1724637418991,0.00980986,2746.1,2746.0,12.13701255]
[1724637419191,0.00980986,2746.1,2746.0,15.34481255]
[1724637420481,0.00980986,2746.1,2746.0,13.91690352]
[1724637420681,0.00980986,2746.1,2746.0,13.52774878]
[1724637420881,0.00980986,2746.1,2746.0,13.91684173]
[1724637421090,0.00980986,2746.1,2746.0,15.34546959]
[1724637421389,0.00980986,2746.1,2746.0,13.91684173]
[1724637423691,0.00980986,2746.1,2746.0,15.82262156]
[1724637424781,0.00980986,2746.1,2746.0,13.91684173]
[1724637425488,0.00980986,2746.1,2746.0,15.82262156]
[1724637426397,0.00980986,2746.1,2746.0,18.12847489]
[1724637426578,0.00980986,2746.1,2746.0,15.83509506]
[1724637426785,0.00980986,2746.1,2746.0,16.32210179]
[1724637427285,0.00980986,2746.1,2746.0,17.26446898]
[1724637427486,0.00980986,2746.1,2746.0,15.83512885]
[1724637428090,0.00980986,2746.1,2746.0,15.83515799]
[1724637428391,0.00980986,2746.1,2746.0,12.19355799]
[1724637429386,3.65140986,2746.1,2746.0,7.67938724]
[1724637429593,9.01540986,2746.1,2746.0,0.55773446]
[1724637429786,9.01540986,2746.1,2745.8,0.00546647]
[1724637429787,0.36402,2745.9,2745.8,0.00546647]
[1724637430184,4.00562,2745.9,2745.8,0.00546647]
[1724637430489,4.00562,2745.9,2745.4,1.43000968]
[1724637430490,0.36412,2745.2,2745.1,0.95333978]
[1724637430883,0.36412,2745.2,2744.9,0.95333978]
[1724637430884,0.36413,2745.1,2744.9,0.95333978]
[1724637431092,0.36413,2745.1,2744.8,0.95333978]
[1724637431093,0.36415,2745.0,2744.8,0.95333978]
[1724637431294,0.36415,2745.0,2744.7,4.16113978]
[1724637431491,0.71984,2745.1,2744.8,3.94415749]
[1724637431691,0.3557,2745.1,2744.8,4.89749727]
[1724637432186,0.3557,2745.1,2744.8,3.94415749]
[1724637432386,0.71983,2745.1,2744.7,4.1640362]
[1724637432795,0.71983,2745.1,2744.7,4.5282162]
[1724637432986,0.3834,2745.0,2744.7,4.5282162]
[1724637433191,0.3834,2745.0,2744.7,3.57487642]
[1724637433593,0.3638,2744.9,2744.7,3.57487642]
[1724637433795,0.3638,2744.9,2744.8,0.36417]
[1724637433994,0.3557,2745.1,2744.8,0.36417]
[1724637434395,0.3557,2745.1,2744.7,3.21069642]
[1724637434396,0.71983,2745.1,2744.7,3.57487642]
[1724637435091,0.71983,2745.1,2744.8,0.36417]
[1724637435293,0.71983,2745.1,2744.7,3.57487642]
[1724637436793,0.71983,2745.1,2744.8,0.36417]
[1724637436993,0.3557,2745.1,2744.9,0.36415]
[1724637437193,0.72792,2745.2,2744.9,0.36415]
[1724637437500,0.36413,2745.1,2744.8,0.36416]
[1724637437792,0.36409,2745.4,2745.1,0.36412]
[1724637437995,0.36409,2745.4,2745.0,4.13006804]
[1724637438185,0.36409,2745.4,2745.0,0.36414]
[1724637438385,0.36409,2745.4,2745.1,0.36413]
[1724637438584,0.3746,2745.5,2745.3,0.3641]
[1724637438792,1.09717,2745.6,2745.3,0.3641]
[1724637438991,1.09717,2745.6,2745.5,6.3578]
[1724637438992,0.3497,2745.6,2745.5,6.3578]
[1724637439193,0.36408,2745.5,2745.4,3.79075385]
[1724637439399,3.6424,2745.5,2745.2,3.15]
[1724637439603,0.36408,2745.5,2745.2,6.72192]
[1724637439803,0.71377,2745.6,2745.3,4.19477144]
[1724637440192,0.36408,2745.5,2745.3,3.83067144]
[1724637440805,0.71377,2745.6,2745.3,3.83067144]
[1724637441292,0.36408,2745.5,2745.3,3.83067144]
[1724637443502,0.36409,2745.4,2745.3,3.83067144]
[1724637443697,0.73069,2745.4,2745.2,3.5082]
[1724637443898,0.3666,2745.4,2745.2,3.5082]
[1724637444099,0.73069,2745.4,2745.2,3.5082]
[1724637445002,0.3497,2745.6,2745.2,3.5082]
[1724637445302,0.36408,2745.5,2745.2,3.5082]
[1724637446500,0.3497,2745.6,2745.2,3.5082]
[1724637446708,0.7345,2745.4,2745.0,0.36414]
[1724637447007,0.7345,2745.4,2745.0,4.19465421]
[1724637447714,0.3497,2745.6,2745.0,4.19465421]
[1724637447715,0.3497,2745.6,2745.3,0.3641]
[1724637448207,0.3835,2745.8,2745.2,6.3578]
[1724637448408,0.3644,2746.0,2745.5,3.15]
[1724637448607,0.3644,2746.0,2745.6,0.7558]
[1724637448908,0.72841,2746.0,2745.7,0.36404]
[1724637449106,0.3644,2746.4,2745.9,0.36402]
[1724637449301,0.3644,2746.4,2745.8,7.02989796]
[1724637449302,0.36398,2746.3,2745.8,7.02989796]
[1724637449509,0.36398,2746.3,2746.0,0.36401]
[1724637449708,0.36398,2746.3,2745.9,0.36402]
[1724637449903,0.36399,2746.2,2745.9,0.36402]
[1724637450306,0.3644,2746.4,2745.9,0.36402]
[1724637450707,0.3644,2746.4,2745.8,7.02989796]
[1724637450908,0.3644,2746.4,2745.8,7.39393796]
[1724637450909,0.37380986,2746.1,2745.8,7.39393796]
[1724637451511,0.37380986,2746.1,2745.8,7.02989796]
[1724637451821,0.36403,2745.9,2745.7,3.2078]
[1724637453312,0.36404,2745.8,2745.7,3.2078]
[1724637454215,0.71983,2745.9,2745.7,3.2078]
[1724637454516,0.3558,2745.9,2745.7,3.2078]
[1724637456217,0.71983,2745.9,2745.7,3.2078]
[1724637456517,4.36143,2745.9,2745.7,3.2078]
[1724637457201,3.9974,2745.9,2745.7,3.2078]
[1724637457407,4.36143,2745.9,2745.7,3.2078]
[1724637458914,0.36404,2745.8,2745.7,3.2078]
[1724637459116,4.36144,2745.9,2745.7,3.2078]
[1724637459320,0.36404,2745.8,2745.7,3.2078]
[1724637459517,4.36143,2745.9,2745.7,3.2078]
[1724637459909,0.36404,2745.8,2745.7,3.2078]
[1724637460116,4.00564,2745.8,2745.7,3.2078]
[1724637460316,4.00564,2745.8,2745.3,3.5573]
[1724637460317,0.36409,2745.4,2745.3,3.5573]
[1724637460509,0.3691,2745.7,2745.3,3.2078]
[1724637460814,0.36406,2745.6,2745.3,3.5719]
[1724637461003,0.3558,2745.9,2745.5,0.36407]
[1724637461209,0.36406,2745.7,2745.4,4.3318684]
[1724637461718,0.3558,2745.9,2745.4,4.3318684]
[1724637461719,0.36406,2745.6,2745.4,4.3318684]
[1724637462318,0.36406,2745.6,2745.4,3.9677884]
[1724637462613,0.3558,2745.9,2745.3,3.5719]
[1724637462919,0.36408,2745.6,2745.3,3.5719]
[1724637463222,0.36409,2745.4,2745.3,3.2078]
[1724637464616,0.3641,2745.3,2745.2,0.7481]
[1724637465212,0.3641,2745.3,2744.7,0.9562362]
[1724637465213,3.6424,2745.3,2744.7,0.9562362]
[1724637465421,0.36414,2745.1,2744.8,1.09337]
[1724637466312,0.36413,2745.2,2744.9,0.36416]
[1724637466612,0.36413,2745.1,2744.9,0.36416]
[1724637467011,0.36413,2745.1,2744.8,1.09336]
[1724637468017,0.36412,2745.2,2744.9,0.36415]
[1724637468213,0.36413,2745.1,2744.8,1.09336]
[1724637469616,0.3661,2745.4,2744.8,0.7292]
[1724637469821,0.91027,2745.3,2744.8,0.7292]
[1724637470118,0.36416,2745.0,2744.8,0.7292]
[1724637470319,0.36416,2744.9,2744.8,0.7292]
[1724637470512,0.75056,2744.9,2744.8,0.7292]
[1724637470711,4.39376,2744.9,2744.8,0.7292]
[1724637471113,4.00736,2744.9,2744.8,0.7292]
[1724637471520,3.6432,2744.9,2744.8,0.7292]
[1724637471713,3.6432,2744.9,2744.8,1.09337]
[1724637472222,3.6432,2744.9,2744.8,1.65116427]
[1724637472421,0.36415,2745.0,2744.8,1.65116427]
[1724637472622,0.36415,2745.0,2744.8,1.09337]
[1724637473320,0.36415,2745.0,2744.8,0.7292]
[1724637473718,0.36415,2745.0,2744.8,1.09337]
[1724637474415,0.3661,2745.4,2744.8,1.09337]
[1724637474416,0.36414,2745.1,2744.8,1.09337]
[1724637475015,0.36414,2745.0,2744.8,1.09337]
[1724637475523,0.36414,2745.0,2744.9,0.55778931]
[1724637476319,0.36414,2745.0,2744.8,1.09337]
[1724637476631,0.36414,2745.0,2744.9,0.55778773]
[1724637477120,0.36414,2745.0,2744.8,1.09337]
[1724637477519,0.36414,2745.0,2744.9,0.5577911]
[1724637477723,0.36414,2745.0,2744.8,1.09337]
[1724637477918,9.30982024,2745.3,2745.2,0.36412]
[1724637478119,0.91012,2745.8,2744.8,3.8792]
[1724637478120,0.36405,2745.8,2745.1,3.15]
[1724637478328,3.9352,2746.0,2745.4,3.15]
[1724637478632,3.9352,2746.0,2745.7,0.36405]
[1724637478633,0.73122,2746.0,2745.7,0.36405]
[1724637478933,0.73122,2746.0,2745.8,0.3598]
[1724637478934,0.36402,2745.9,2745.8,0.3598]
[1724637479826,0.3672,2746.0,2745.8,0.3598]
[1724637479827,0.73122,2746.0,2745.8,0.3598]
[1724637480929,0.36401,2746.0,2745.8,0.3598]
[1724637481228,0.36402,2745.9,2745.8,0.3598]
[1724637481624,4.00562,2745.9,2745.8,0.3598]
[1724637484428,0.36404,2745.8,2745.5,0.73598]
[1724637484618,0.36404,2745.8,2745.5,1.10118]
[1724637485624,0.39000986,2746.1,2745.5,1.10118]
[1724637485625,0.36403,2745.9,2745.5,1.10118]
[1724637485933,0.36403,2745.9,2745.6,0.36406]
[1724637487235,0.39000986,2746.1,2745.7,0.36405]
[1724637487236,0.36402,2746.0,2745.7,0.36405]
[1724637487434,0.36402,2746.0,2745.7,4.54721844]
[1724637487623,0.36403,2745.9,2745.6,4.54722844]
[1724637487825,0.36403,2745.9,2745.7,0.381]
[1724637488229,0.36403,2745.9,2745.7,4.35245492]
[1724637489030,0.00980986,2746.1,2745.8,0.36403]
[1724637489232,0.37380986,2746.1,2745.8,0.36403]
[1724637489431,0.37380986,2746.1,2745.9,0.3748]
[1724637489624,0.00980986,2746.1,2746.0,0.3692]
[1724637489825,0.37380986,2746.1,2746.0,0.3692]
[1724637491131,0.36401,2746.0,2745.9,0.3748]
[1724637491336,0.36404,2745.8,2745.7,0.3692]
[1724637491526,0.36403,2745.9,2745.7,0.3692]
[1724637492036,0.36404,2745.8,2745.7,0.3692]
[1724637492426,0.36403,2745.9,2745.7,0.3692]
[1724637492632,0.00980986,2746.1,2745.7,0.3692]
[1724637493041,0.36403,2745.9,2745.7,0.73325]
[1724637493334,0.36403,2745.9,2745.7,0.3692]
[1724637493529,0.00980986,2746.1,2745.7,0.3692]
[1724637493530,0.36404,2745.8,2745.7,0.3692]
[1724637493724,0.36403,2745.9,2745.7,0.92688072]
[1724637493936,0.36403,2745.9,2745.8,3.2078]
[1724637495230,0.36402,2746.0,2745.8,3.2078]
[1724637496040,0.36402,2746.0,2745.8,3.57184]
[1724637496238,0.00980986,2746.1,2745.9,0.36402]
[1724637496537,0.00980986,2746.1,2746.0,0.3875]
[1724637496741,0.37380986,2746.1,2746.0,0.3875]
[1724637496933,0.00980986,2746.1,2746.0,0.3875]
[1724637497135,0.37380986,2746.1,2746.0,0.3875]
[1724637502246,0.36404,2745.8,2745.7,3.577]
[1724637502452,0.36404,2745.8,2745.7,4.49568464]
[1724637502744,0.36404,2745.8,2745.7,8.52631598]
[1724637502950,0.36404,2745.8,2745.7,12.16791598]
[1724637503245,0.36403,2745.9,2745.7,12.53196598]
[1724637503449,0.36403,2745.9,2745.7,8.33268134]
[1724637504238,0.36402,2746.0,2745.7,8.33268134]
[1724637504446,0.36402,2746.0,2745.8,0.36404]
[1724637504647,0.37381986,2746.1,2745.8,0.36403]
[1724637504848,0.37381986,2746.1,2745.9,0.36402]
[1724637506250,0.36401,2746.0,2745.8,0.36403]
[1724637506643,0.37381986,2746.1,2745.9,0.36402]
[1724637506843,0.37381986,2746.1,2745.7,4.76083134]
[1724637506844,0.36401,2746.0,2745.8,0.36403]
[1724637507445,0.36402,2745.9,2745.7,8.33268134]
[1724637508047,0.36404,2745.8,2745.7,3.938]
[1724637508249,0.36404,2745.8,2745.7,3.2078]
[1724637509851,0.36404,2745.8,2745.5,1.06758]
[1724637510053,0.36403,2745.9,2745.6,0.92175493]
[1724637510253,0.36403,2745.9,2745.6,4.44023329]
[1724637511459,0.36404,2745.8,2745.6,4.44023329]
[1724637511875,0.36404,2745.8,2745.7,3.2078]
[1724637512946,0.36403,2745.9,2745.7,3.2078]
[1724637513152,0.37381986,2746.1,2745.8,0.36403]
[1724637513352,0.36402,2746.0,2745.7,3.57184]
[1724637513955,0.36402,2746.0,2745.7,3.95854]
[1724637514154,0.00980986,2746.1,2745.9,1.31]
[1724637514456,0.37380986,2746.1,2746.0,0.707]
[1724637514863,4.01540986,2746.1,2746.0,0.707]
[1724637516564,0.37380986,2746.1,2746.0,0.707]
[1724637516767,0.00980986,2746.1,2746.0,0.707]
[1724637517260,0.00980986,2746.1,2746.0,1.07101]
[1724637520062,0.00980986,2746.1,2746.0,1.62866535]
[1724637520250,0.00980986,2746.1,2746.0,2.58200513]
[1724637520457,0.00980986,2746.1,2746.0,3.38774186]
[1724637521268,0.00980986,2746.1,2746.0,3.77688107]
[1724637521457,0.00434339,2746.1,2746.0,21.61706215]
[1724637521664,0.36391,2746.8,2746.5,0.36394]
[1724637521860,0.36391,2746.8,2746.7,1.31]
[1724637522165,3.9366,2747.0,2746.4,0.95337225]
[1724637522166,0.36394,2746.5,2746.4,0.95337225]
[1724637522357,0.36394,2746.5,2746.4,2.61267225]
[1724637522556,0.36394,2746.5,2746.4,7.99246451]
[1724637522557,0.36667352,2746.5,2746.4,7.99246451]
[1724637522760,0.36667352,2746.5,2746.4,3.98032106]
[1724637523066,0.00273352,2746.5,2746.4,3.98032106]
[1724637523262,0.00273352,2746.5,2746.4,5.23646987]
[1724637523567,0.00273352,2746.5,2746.4,4.36966517]
[1724637524162,0.00273352,2746.5,2746.4,6.66651184]
[1724637524357,0.00273352,2746.5,2746.4,6.19011832]
[1724637525362,0.00273352,2746.5,2746.4,3.98061366]
[1724637525566,0.00273352,2746.5,2746.4,2.61733074]
[1724637525868,0.00273352,2746.5,2746.4,3.98057569]
[1724637526071,0.00273352,2746.5,2746.4,4.80168288]
[1724637526260,0.00273352,2746.5,2746.4,6.55357994]
[1724637526460,0.00273352,2746.5,2746.4,10.19437994]
[1724637526769,0.00273352,2746.5,2746.4,13.14227464]
[1724637527267,0.00273352,2746.5,2746.4,13.70625192]
[1724637528362,0.00273352,2746.5,2746.4,11.88585978]
[1724637529059,0.00273352,2746.5,2746.4,10.5226193]
[1724637529367,0.00273352,2746.5,2746.4,11.88584366]
[1724637531372,0.00273352,2746.5,2746.4,11.08020848]
[1724637531767,0.00273352,2746.5,2746.4,10.12715048]
[1724637533361,0.00273352,2746.5,2746.4,6.48635048]
[1724637533562,0.36668352,2746.5,2746.4,0.56195507]
[1724637533770,0.36668352,2746.5,2746.4,1.87195507]
[1724637533976,0.36668352,2746.5,2746.4,1.31436589]
[1724637534177,0.74878352,2746.5,2746.4,1.31436589]
[1724637534765,0.38483352,2746.5,2746.4,1.31436589]
[1724637535066,0.38483352,2746.5,2746.4,1.871974]
[1724637535463,0.74878352,2746.5,2746.4,0.00436589]
[1724637535669,1.10578352,2746.5,2746.4,1.31436589]
[1724637536268,4.31358352,2746.5,2746.4,0.00436589]
[1724637536580,13.86425352,2746.5,2746.4,0.00436589]
[1724637538873,13.86425352,2746.5,2746.2,0.00546647]
[1724637538874,2.58391,2746.3,2746.2,0.00546647]
[1724637539074,6.22551,2746.3,2746.2,0.00546647]
[1724637539274,11.22551,2746.3,2746.2,0.00546647]
[1724637539878,11.22551,2746.3,2746.2,0.0098456]
[1724637540272,9.91551,2746.3,2746.2,0.0098456]
[1724637540476,4.91551,2746.3,2746.2,0.0098456]
[1724637540969,4.00557,2746.3,2746.2,0.0098456]
[1724637541169,4.00557,2746.3,2746.2,1.3198456]
[1724637541676,0.36397,2746.3,2746.2,1.3198456]
[1724637541974,3.94963352,2746.5,2746.2,0.0098456]
[1724637542872,0.36397,2746.3,2746.2,0.0098456]
[1724637543275,4.00557,2746.3,2746.2,0.0098456]
[1724637543471,9.00557,2746.3,2746.2,0.0098456]
[1724637545585,4.00557,2746.3,2746.2,0.0098456]
[1724637545980,7.21337,2746.3,2746.2,0.0098456]
[1724637547482,3.57177,2746.3,2746.2,0.0098456]
[1724637549877,7.21337,2746.3,2746.2,0.0098456]
[1724637550277,0.36397,2746.3,2746.2,0.0098456]
[1724637553574,0.36397,2746.3,2746.2,0.3677456]
[1724637563395,1.27391,2746.3,2746.2,0.3677456]
[1724637563693,5.82545,2746.3,2746.2,0.0098456]
[1724637564193,7.13545,2746.3,2746.2,0.0098456]
[1724637569290,10.34325,2746.3,2746.2,0.0098456]
[1724637571597,7.13545,2746.3,2746.2,0.0098456]
[1724637571804,10.34325,2746.3,2746.2,0.0098456]
[1724637572984,9.43331,2746.3,2746.2,0.0098456]
[1724637577490,5.79171,2746.3,2746.2,0.0098456]
[1724637578999,2.58391,2746.3,2746.2,0.0098456]
[1724637579197,5.79171,2746.3,2746.2,0.0098456]
[1724637580602,2.58391,2746.3,2746.2,0.0098456]
[1724637580903,5.79171,2746.3,2746.2,0.0098456]
[1724637586095,3.57177,2746.3,2746.2,1.3198456]
[1724637586297,0.38483352,2746.5,2746.4,0.36396]
[1724637586298,0.00273352,2746.5,2746.4,0.36396]
[1724637586504,0.00273352,2746.5,2746.4,1.67396]
[1724637586801,0.00273352,2746.5,2746.4,8.02026816]
[1724637587101,0.00273352,2746.5,2746.4,7.63116473]
[1724637587596,0.00273352,2746.5,2746.4,8.08830545]
[1724637587798,0.00273352,2746.5,2746.4,8.47740437]
[1724637587993,0.00273352,2746.5,2746.4,8.16672569]
[1724637588193,0.00273352,2746.5,2746.4,5.50841109]
[1724637589002,0.00273352,2746.5,2746.4,6.31408488]
[1724637589196,0.00273352,2746.5,2746.4,6.46146909]
[1724637589499,0.00273352,2746.5,2746.4,5.87237109]
[1724637589699,0.00273352,2746.5,2746.4,7.63109875]
[1724637589895,0.00273352,2746.5,2746.4,6.67804075]
[1724637590091,0.00273352,2746.5,2746.4,6.82542909]
[1724637590492,0.00273352,2746.5,2746.4,5.87237109]
[1724637590899,0.00273352,2746.5,2746.4,4.9508]
[1724637591408,0.00273352,2746.5,2746.4,5.50840917]
[1724637591796,0.00273352,2746.5,2746.4,4.9508]
[1724637592506,0.00273352,2746.5,2746.4,5.50840765]
[1724637593406,0.00273352,2746.5,2746.4,5.87236765]
[1724637593804,0.00273352,2746.5,2746.4,5.50840765]
[1724637594396,0.00273352,2746.5,2746.4,5.50840932]